fUST/lending_fUST_20260502
["ID","MTS","AMOUNT","RATE_DAILY","PERIOD"]
[421453400,1777685440000,-6.39083627,0.00011813,2]
[421453396,1777685440000,-300.0,0.00011813,2]
[421453394,1777685440000,-281.20801875,0.00011813,2]
[421453424,1777685443000,-250.93336826,0.0001307,2]
[421453422,1777685443000,-259.87592589,0.00011923,2]
[421453421,1777685443000,-1193.60916373,0.00011813,2]
[421453423,1777685443000,-424.6827454,0.00011963,2]
[421453425,1777685443000,-425.0644206,0.0001307,2]
[421453427,1777685443000,-662.01018691,0.0001307,2]
[421453426,1777685443000,-1488.72781309,0.0001307,2]
[421453434,1777685443000,-2230.315306,0.00013618,2]
[421453428,1777685443000,-167.0,0.00013194,2]
[421453436,1777685443000,-228.443128,0.00013698,2]
[421453431,1777685443000,-170.03590999,0.0001351,2]
[421453433,1777685443000,-151.0,0.00013537,2]
[421453430,1777685443000,-1057.5286268,0.00013412,2]
[421453429,1777685443000,-1143.1570578,0.00013412,2]
[421453440,1777685443000,-500.0,0.000139,2]
[421453438,1777685443000,-1000.0,0.00013699,2]
[421453435,1777685443000,-3436.85610933,0.00013687,2]
[421453450,1777685443000,-1698.39805787,0.00014,2]
[421453451,1777685443000,-414.25839924,0.00014,2]
[421453446,1777685443000,-445.202766,0.00013992,2]
[421453449,1777685443000,-500.0,0.00013999,2]
[421453447,1777685443000,-82.24398277,0.00013992,2]
[421453448,1777685443000,-455.44051723,0.00013992,2]
[421453444,1777685443000,-151.0,0.00013992,2]
[421453443,1777685443000,-162.380719,0.00013992,2]
[421453442,1777685443000,-306.65359255,0.00013923,2]
[421453441,1777685443000,-2629.80647852,0.000139,2]
[421453439,1777685443000,-1000.0,0.00013699,2]
[421453437,1777685443000,-500.0,0.00013698,2]
[421453445,1777685443000,-283.53369456,0.00013992,2]
[421453483,1777685446000,-500.0,0.00014165,2]
[421453481,1777685446000,-500.0,0.00014165,2]
[421453477,1777685446000,-500.0,0.00014165,2]
[421453475,1777685446000,-500.0,0.00014165,2]
[421453476,1777685446000,-500.0,0.00014165,2]
[421453480,1777685446000,-500.0,0.00014165,2]
[421453473,1777685446000,-500.0,0.00014165,2]
[421453465,1777685446000,-16155.02251351,0.00014,2]
[421453471,1777685446000,-500.0,0.00014165,2]
[421453469,1777685446000,-517.68779352,0.00014165,2]
[421453467,1777685446000,-500.0,0.00014165,2]
[421453470,1777685446000,-500.0,0.00014165,2]
[421453472,1777685446000,-500.0,0.00014165,2]
[421453464,1777685446000,-2404.99956709,0.00014,2]
[421453468,1777685446000,-500.0,0.00014165,2]
[421453466,1777685446000,-6832.04215873,0.00014157,2]
[421453478,1777685446000,-472.8357881,0.00014165,2]
[421453484,1777685446000,-500.0,0.00014165,2]
[421453486,1777685446000,-500.0,0.00014165,2]
[421453479,1777685446000,-500.0,0.00014165,2]
[421453496,1777685446000,-225.2835188,0.00014273,2]
[421453497,1777685446000,-500.0,0.00014273,2]
[421453494,1777685446000,-2312.83697232,0.00014166,2]
[421453493,1777685446000,-413.95924066,0.00014165,2]
[421453490,1777685446000,-500.0,0.00014165,2]
[421453499,1777685446000,-64489.66210828,0.00014274,2]
[421453495,1777685446000,-2736.1739817,0.00014259,2]
[421453489,1777685446000,-500.0,0.00014165,2]
[421453492,1777685446000,-522.56954967,0.00014165,2]
[421453482,1777685446000,-500.0,0.00014165,2]
[421453487,1777685446000,-500.0,0.00014165,2]
[421453485,1777685446000,-500.0,0.00014165,2]
[421453498,1777685446000,-297.91169328,0.00014273,2]
[421453488,1777685446000,-500.0,0.00014165,2]
[421453491,1777685446000,-500.0,0.00014165,2]
[421453504,1777685774000,629.99,0.0002191,120]
[421453506,1777686022000,3294.36197953,0.000219,120]
[421453564,1777686638000,-259.59411312,0.00012765,2]
[421453572,1777686638000,-500.0,0.00013523,2]
[421453566,1777686638000,-300.0,0.0001299,2]
[421453568,1777686638000,-558.53818529,0.00013523,2]
[421453574,1777686638000,-500.0,0.00013523,2]
[421453571,1777686638000,-590.12158074,0.00013523,2]
[421453575,1777686638000,-500.0,0.00013523,2]
[421453563,1777686638000,-6191.73204942,0.00012727,2]
[421453573,1777686638000,-500.0,0.00013523,2]
[421453576,1777686638000,-500.0,0.00013523,2]
[421453578,1777686638000,-284.14957384,0.00013523,2]
[421453579,1777686638000,-500.0,0.00013523,2]
[421453577,1777686638000,-440.74799396,0.00013523,2]
[421453581,1777686638000,-3175.93059756,0.00013524,2]
[421453580,1777686638000,-500.0,0.00013523,2]
[421453570,1777686638000,-157.69846316,0.00013523,2]
[421453582,1777686638000,-68382.88044662,0.00013524,2]
[421453668,1777686646000,-177410.28161174,0.00013524,2]
[421453664,1777686646000,-332.15,0.00012835,2]
[421453667,1777686646000,-200.0,0.00013282,2]
[421453682,1777686966000,1179.93749452,0.00019889,120]
[421453681,1777686966000,1179.93749452,0.00019857,120]
[421453684,1777686967000,1179.93749452,0.00019952,120]
[421453683,1777686967000,1179.93749452,0.00019921,120]
[421453685,1777686968000,1179.93749452,0.00019984,120]
[421453686,1777687292000,-300.0,0.0001247,2]
[421453687,1777687310000,-274.80223086,0.00012471,2]
[421453688,1777687328000,-405.19776914,0.00012471,2]
[421453689,1777687346000,-274.80223086,0.00012471,2]
[421453690,1777687363000,-405.19776914,0.00012471,2]
[421453707,1777687832000,-300.0,0.00011978,2]
[421453706,1777687832000,-300.0,0.00011978,2]
[421453704,1777687832000,-716.83765531,0.00011859,2]
[421453705,1777687832000,-300.0,0.00011978,2]
[421453703,1777687832000,-4429.71483192,0.0001174,2]
[421453708,1777687832000,-42.40330071,0.00011978,2]
[421453788,1777687838000,-271.19422155,0.00013131,2]
[421453772,1777687838000,-1157.59669929,0.00011978,2]
[421453777,1777687838000,-269.30618624,0.00012223,2]
[421453779,1777687838000,-325.612506,0.00012715,2]
[421453790,1777687838000,-80886.5221619,0.00013132,2]
[421453775,1777687838000,-589.0,0.00011979,2]
[421453782,1777687838000,-325.1748761,0.00012724,2]
[421453784,1777687838000,-390.97672971,0.00013131,2]
[421453800,1777687838000,-320.64253108,0.00013132,2]
[421453780,1777687838000,-325.5777582,0.00012724,2]
[421453786,1777687838000,-198.23884154,0.00013131,2]
[421453801,1777687838000,-3577.7963158,0.00013132,2]
[421454205,1777687844000,-29484.4319735,0.00013132,2]
[421454202,1777687844000,-1074.91166387,0.00013132,2]
[421454204,1777687844000,-4479.15198489,0.00013132,2]
[421454203,1777687844000,-2535.75258541,0.00013132,2]
[421454200,1777687844000,-2060.3243339,0.00013132,2]
[421454215,1777687846000,-14474.45817494,0.00013132,2]
[421454251,1777689032000,-236.47422183,0.00011041,2]
[421454253,1777689032000,-263.52577817,0.00011152,2]
[421454258,1777689032000,-36.47422183,0.00011152,2]
[421454261,1777689032000,-1200.0,0.00011152,2]
[421454262,1777689032000,-381.97210748,0.00011153,2]
[421454269,1777689032000,-577.0,0.00011153,2]
[421454270,1777689032000,-279.16006252,0.00011323,2]
[421454268,1777689032000,-4618.02789252,0.00011153,2]
[421454273,1777689032000,-1740.04136178,0.00012925,2]
[421454272,1777689032000,-2781.85282174,0.00012924,2]
[421454249,1777689032000,-679.23543468,0.00011041,2]
[421454276,1777689032000,-290.43509651,0.00013023,2]
[421454275,1777689032000,-500.0,0.00013023,2]
[421454278,1777689032000,-500.0,0.00013023,2]
[421454277,1777689032000,-500.0,0.00013023,2]
[421454279,1777689032000,-204.43331387,0.00013023,2]
[421454271,1777689032000,-2108.84312035,0.00012869,30]
[421454274,1777689032000,-724.57023792,0.00012925,2]
[421454336,1777689038000,-7320.75381433,0.00013024,2]
[421454328,1777689038000,-295.56668613,0.00013023,2]
[421454330,1777689038000,-500.0,0.00013023,2]
[421454335,1777689038000,-217.72232869,0.00013023,2]
[421454342,1777689038000,-160333.93733644,0.00013024,2]
[421454334,1777689038000,-500.0,0.00013023,2]
[421454340,1777689038000,-3337.04838098,0.00013024,2]
[421454332,1777689038000,-500.0,0.00013023,2]
[421454470,1777689041000,-1346.44188268,0.00013024,2]
[421454464,1777689041000,-2547.06363544,0.00013024,2]
[421454462,1777689041000,-726.24112291,0.00013024,2]
[421454513,1777689043000,-3678.4336492,0.00013024,2]
[421454831,1777689047000,-7158.48195505,0.00013024,2]
[421454830,1777689047000,-989.92404718,0.00013024,2]
[421454833,1777689099000,1109.5,0.000219,120]
[421454835,1777690200000,840.0,8.011e-05,2]
[421454836,1777690200000,1000.0,8.011e-05,2]
[421454838,1777690200000,1000.0,8.011e-05,2]
[421454840,1777690200000,160.0,8.011e-05,2]
[421454839,1777690200000,1000.0,8.011e-05,2]
[421454837,1777690200000,1000.0,8.011e-05,2]
[421454860,1777690232000,-5000.0,8.166e-05,2]
[421455522,1777690249000,-77.36704638,8.5e-05,7]
[421455521,1777690249000,-280.73898183,8.249e-05,2]
[421455526,1777690823000,56.69264525,8.011e-05,2]
[421455525,1777690823000,840.0,8.011e-05,2]
[421455527,1777690831000,943.30735475,8.011e-05,2]
[421455528,1777690844000,-245.48047261,8.011e-05,2]
[421455529,1777691005000,801.56076895,8.01e-05,2]
[421455530,1777691021000,5000.0,8.01e-05,2]
[421455531,1777691043000,3811.21217264,8.01e-05,2]
[421455554,1777691432000,-1943.12983766,0.00012524,2]
[421455544,1777691432000,-537.0,8.346e-05,2]
[421455546,1777691432000,-82.25393925,8.5e-05,7]
[421455547,1777691432000,-151.10050787,9e-05,2]
[421455552,1777691432000,-150.45,0.0001252,2]
[421455550,1777691432000,-152.0,0.00011056,7]
[421455549,1777691432000,-345.7446712,0.00011,2]
[421455551,1777691432000,-401.91291499,0.00012346,2]
[421455545,1777691432000,-295.5242022,8.346e-05,2]
[421455553,1777691432000,-2218.15043973,0.00012524,2]
[421455548,1777691432000,-348.71855859,0.00010346,2]
[421455575,1777691440000,-319.9983824,0.00012623,2]
[421455567,1777691440000,-550.34140005,0.00012524,2]
[421455569,1777691440000,-300.0,0.00012622,2]
[421455579,1777691440000,-500.0,0.00012623,2]
[421455577,1777691440000,-500.0,0.00012623,2]
[421455571,1777691440000,-152.40563008,0.00012623,2]
[421455573,1777691440000,-174.81908032,0.00012623,2]
[421455581,1777691440000,-500.0,0.00012623,2]
[421455584,1777691440000,-500.0,0.00012623,2]
[421455583,1777691440000,-500.0,0.00012623,2]
[421455585,1777691440000,-183.98173138,0.00012623,2]
[421455582,1777691440000,-500.0,0.00012623,2]
[421455617,1777691442000,-413.65943757,0.00012623,2]
[421455620,1777691442000,-86.34056243,0.00012623,2]
[421455622,1777691442000,-193.11705602,0.00012623,2]
[421455615,1777691442000,-316.01826862,0.00012623,2]
[421455660,1777691443000,-500.0,0.00012623,2]
[421455658,1777691443000,-500.0,0.00012623,2]
[421455646,1777691443000,-444.45606171,0.00012623,2]
[421455656,1777691443000,-500.0,0.00012623,2]
[421455624,1777691443000,-359.61615101,0.00012623,2]
[421455643,1777691443000,-55.54393829,0.00012623,2]
[421455640,1777691443000,-500.0,0.00012623,2]
[421455642,1777691443000,-500.0,0.00012623,2]
[421455662,1777691443000,-500.0,0.00012623,2]
[421455639,1777691443000,-140.38384899,0.00012623,2]
[421455664,1777691443000,-500.0,0.00012623,2]
[421455650,1777691443000,-500.0,0.00012623,2]
[421455648,1777691443000,-500.0,0.00012623,2]
[421455652,1777691443000,-500.0,0.00012623,2]
[421455679,1777691443000,-447.88480795,0.00012623,2]
[421455681,1777691443000,-33193.97446073,0.00012624,2]
[421455675,1777691443000,-500.0,0.00012623,2]
[421455683,1777691443000,-7953.51744111,0.00012624,2]
[421455677,1777691443000,-500.0,0.00012623,2]
[421455669,1777691443000,-500.0,0.00012623,2]
[421455671,1777691443000,-500.0,0.00012623,2]
[421455654,1777691443000,-405.04074962,0.00012623,2]
[421455667,1777691443000,-500.0,0.00012623,2]
[421455673,1777691443000,-500.0,0.00012623,2]
[421455735,1777691446000,-1200.92600881,0.00012624,2]
[421455734,1777691446000,-2003.11960487,0.00012624,2]
[421455777,1777692638000,-5994.0236549,0.00012544,2]
[421455783,1777692638000,-161.74,0.00012929,2]
[421455787,1777692638000,-2885.55779903,0.00013332,2]
[421455784,1777692638000,-500.0,0.00013,2]
[421455785,1777692638000,-530.895,0.00013132,2]
[421455782,1777692638000,-6358.18440604,0.00012726,2]
[421455780,1777692638000,-151.3971218,0.00012652,2]
[421455778,1777692638000,-152.0,0.00012635,7]
[421455769,1777692638000,-910.27586351,0.00011213,2]
[421455774,1777692638000,-269.57,0.00012542,2]
[421455776,1777692638000,-301.0406976,0.00012544,2]
[421455773,1777692638000,-150.62,0.00012382,2]
[421455771,1777692638000,-1129.21931009,0.00011326,2]
[421455772,1777692638000,-279.22108868,0.00011565,2]
[421455770,1777692638000,-870.78068991,0.00011326,2]
[421455768,1777692638000,-4089.72413649,0.00011213,2]
[421455794,1777692638000,-500.0,0.00013332,2]
[421455775,1777692638000,-3349.5961798,0.00012544,2]
[421455790,1777692638000,-500.0,0.00013332,2]
[421455807,1777692638000,-1971552.53585005,0.00013333,2]
[421455786,1777692638000,-156.0,0.00013268,2]
[421455804,1777692638000,-500.0,0.00013332,2]
[421455800,1777692638000,-500.0,0.00013332,2]
[421455801,1777692638000,-500.0,0.00013332,2]
[421455799,1777692638000,-500.0,0.00013332,2]
[421455802,1777692638000,-364.21723158,0.00013332,2]
[421455803,1777692638000,-500.0,0.00013332,2]
[421455806,1777692638000,-500.0,0.00013332,2]
[421455808,1777692638000,-1509.5865512,0.00013333,2]
[421455805,1777692638000,-500.0,0.00013332,2]
[421455797,1777692638000,-500.0,0.00013332,2]
[421455796,1777692638000,-500.0,0.00013332,2]
[421455795,1777692638000,-500.0,0.00013332,2]
[421455793,1777692638000,-237.83710162,0.00013332,2]
[421455792,1777692638000,-403.71905942,0.00013332,2]
[421455788,1777692638000,-223.99886768,0.00013332,2]
[421455791,1777692638000,-160.87608977,0.00013332,2]
[421455798,1777692638000,-500.0,0.00013332,2]
[421455789,1777692638000,-215.11852876,0.00013332,2]
[421455828,1777692646000,-6439.79107111,0.00013333,2]
[421455825,1777692646000,-1577.85954034,0.00013333,2]
[421455822,1777692646000,-4597.96473551,0.00013333,2]
[421455864,1777693832000,-300.0,0.00012616,2]
[421455865,1777693832000,-300.0,0.00012616,2]
[421455862,1777693832000,-585.0,0.00011745,2]
[421455866,1777693832000,-738.13036019,0.00012618,2]
[421455861,1777693832000,-1404.58131835,0.00011628,2]
[421455863,1777693832000,-284.25666691,0.00011905,2]
[421455955,1777693843000,-2000.0,0.00012718,2]
[421455940,1777693843000,-2000.0,0.00012718,2]
[421455942,1777693843000,-2000.0,0.00012718,2]
[421455957,1777693843000,-2000.0,0.00012718,2]
[421455956,1777693843000,-2000.0,0.00012718,2]
[421455953,1777693843000,-2000.0,0.00012718,2]
[421455938,1777693843000,-2000.0,0.00012718,2]
[421455939,1777693843000,-2000.0,0.00012718,2]
[421455937,1777693843000,-2000.0,0.00012718,2]
[421455935,1777693843000,-2000.0,0.00012718,2]
[421455936,1777693843000,-2000.0,0.00012718,2]
[421455929,1777693843000,-81729.84916295,0.00012618,2]
[421455934,1777693843000,-2000.0,0.00012718,2]
[421455933,1777693843000,-2000.0,0.00012718,2]
[421455931,1777693843000,-2000.0,0.00012718,2]
[421455930,1777693843000,-1996.33539582,0.00012676,2]
[421455928,1777693843000,-495.66269898,0.00012618,2]
[421455927,1777693843000,-979.16350684,0.00012618,2]
[421455941,1777693843000,-2000.0,0.00012718,2]
[421455932,1777693843000,-2000.0,0.00012718,2]
[421455948,1777693843000,-2000.0,0.00012718,2]
[421455950,1777693843000,-2000.0,0.00012718,2]
[421455944,1777693843000,-2000.0,0.00012718,2]
[421455974,1777693843000,-2000.0,0.00012718,2]
[421455975,1777693843000,-20675.30277905,0.00012718,2]
[421455977,1777693843000,-288.07357235,0.00012718,2]
[421455971,1777693843000,-2000.0,0.00012718,2]
[421455972,1777693843000,-2000.0,0.00012718,2]
[421455970,1777693843000,-2000.0,0.00012718,2]
[421455973,1777693843000,-2000.0,0.00012718,2]
[421455965,1777693843000,-2000.0,0.00012718,2]
[421455967,1777693843000,-2000.0,0.00012718,2]
[421455946,1777693843000,-2000.0,0.00012718,2]
[421455968,1777693843000,-598.37928552,0.00012718,2]
[421455966,1777693843000,-2000.0,0.00012718,2]
[421455976,1777693843000,-29363.73599831,0.00012718,2]
[421455964,1777693843000,-2000.0,0.00012718,2]
[421455962,1777693843000,-2000.0,0.00012718,2]
[421455958,1777693843000,-2000.0,0.00012718,2]
[421455959,1777693843000,-2000.0,0.00012718,2]
[421455969,1777693843000,-1401.62071448,0.00012718,2]
[421455961,1777693843000,-2000.0,0.00012718,2]
[421455960,1777693843000,-2000.0,0.00012718,2]
[421455963,1777693843000,-2000.0,0.00012718,2]
[421455991,1777693847000,-979.16350684,0.00012647,2]
[421455992,1777693847000,-38775.21112577,0.00012718,2]
[421455990,1777693847000,-979.16350684,0.00012633,2]
[421456060,1777695032000,-204.02377409,0.00012817,2]
[421456057,1777695032000,-500.0,0.00012817,2]
[421456058,1777695032000,-500.0,0.00012817,2]
[421456059,1777695032000,-363.58773536,0.00012817,2]
[421456056,1777695032000,-262.82523077,0.00012817,2]
[421456054,1777695032000,-1958.32701368,0.000128,2]
[421456055,1777695032000,-156.79920738,0.00012817,2]
[421456053,1777695032000,-1796.70185622,0.000128,2]
[421456061,1777695032000,-241.53088181,0.00012817,2]
[421456052,1777695032000,-364.0,0.00012799,2]
[421456050,1777695032000,-500.0,0.00012767,2]
[421456049,1777695032000,-151.0,0.00012642,2]
[421456048,1777695032000,-151.0,0.00012642,2]
[421456043,1777695032000,-594.0,0.00012341,2]
[421456039,1777695032000,-259.22075777,0.00012241,2]
[421456041,1777695032000,-281.57153357,0.00012341,2]
[421456047,1777695032000,-151.0,0.00012642,2]
[421456045,1777695032000,-492.06044967,0.00012584,2]
[421456051,1777695032000,-300.0,0.00012799,2]
[421456063,1777695032000,-500.0,0.00012817,2]
[421456069,1777695032000,-203.36616827,0.00012817,2]
[421456062,1777695032000,-625.40643432,0.00012817,2]
[421456083,1777695032000,-500.0,0.00012817,2]
[421456081,1777695032000,-322.73516498,0.00012817,2]
[421456080,1777695032000,-177.26483502,0.00012817,2]
[421456082,1777695032000,-500.0,0.00012817,2]
[421456078,1777695032000,-500.0,0.00012817,2]
[421456077,1777695032000,-166.48522908,0.00012817,2]
[421456079,1777695032000,-500.0,0.00012817,2]
[421456064,1777695032000,-500.0,0.00012817,2]
[421456076,1777695032000,-333.51477092,0.00012817,2]
[421456084,1777695032000,-14.47227295,0.00012817,2]
[421456075,1777695032000,-500.0,0.00012817,2]
[421456067,1777695032000,-500.0,0.00012817,2]
[421456073,1777695032000,-500.0,0.00012817,2]
[421456071,1777695032000,-500.0,0.00012817,2]
[421456070,1777695032000,-525.00272104,0.00012817,2]
[421456066,1777695032000,-196.54342867,0.00012817,2]
[421456072,1777695032000,-500.0,0.00012817,2]
[421456065,1777695032000,-500.0,0.00012817,2]
[421456068,1777695032000,-500.0,0.00012817,2]
[421456074,1777695032000,-500.0,0.00012817,2]
[421456104,1777695038000,-438.14760161,0.00012817,2]
[421456099,1777695038000,-500.0,0.00012817,2]
[421456097,1777695038000,-485.52772705,0.00012817,2]
[421456098,1777695038000,-500.0,0.00012817,2]
[421456101,1777695038000,-500.0,0.00012817,2]
[421456100,1777695038000,-500.0,0.00012817,2]
[421456102,1777695038000,-500.0,0.00012817,2]
[421456107,1777695038000,-171.61203137,0.00012817,2]
[421456105,1777695038000,-500.0,0.00012817,2]
[421456106,1777695038000,-328.38796863,0.00012817,2]
[421456108,1777695038000,-500.0,0.00012817,2]
[421456111,1777695038000,-325.31855434,0.00012818,2]
[421456110,1777695038000,-754.20500419,0.00012818,2]
[421456109,1777695038000,-500.0,0.00012817,2]
[421456103,1777695038000,-500.0,0.00012817,2]
[421456183,1777695530000,2007.93,0.00021918,120]
[421456189,1777696028000,599.0,0.00021918,120]
[421456221,1777696232000,-456.0872351,0.00012642,2]
[421456214,1777696232000,-291.1801029,0.00012003,2]
[421456218,1777696232000,-459.4161044,0.00012574,2]
[421456217,1777696232000,-151.0,0.00012574,2]
[421456216,1777696232000,-151.0,0.00012574,2]
[421456213,1777696232000,-5000.0,0.00011942,2]
[421456210,1777696232000,-300.0,0.00011941,2]
[421456212,1777696232000,-588.0,0.00011941,2]
[421456215,1777696232000,-151.0,0.00012574,2]
[421456208,1777696232000,-300.0,0.00011941,2]
[421456209,1777696232000,-300.0,0.00011941,2]
[421456207,1777696232000,-300.0,0.00011941,2]
[421456222,1777696232000,-455.0838068,0.00012642,2]
[421456220,1777696232000,-151.0,0.00012642,2]
[421456211,1777696232000,-1200.0,0.00011941,2]
[421456223,1777696232000,-151.0,0.00012642,2]
[421456236,1777696232000,-382.01640018,0.00012817,2]
[421456235,1777696232000,-500.0,0.00012817,2]
[421456237,1777696232000,-666.46250356,0.00012818,2]
[421456234,1777696232000,-351.99331885,0.00012817,2]
[421456219,1777696232000,-325.612506,0.00012574,2]
[421456232,1777696232000,-262.54724398,0.00012817,2]
[421456230,1777696232000,-537.6845,0.0001281,2]
[421456233,1777696232000,-148.00668115,0.00012817,2]
[421456229,1777696232000,-175.69541903,0.0001281,2]
[421456228,1777696232000,-162.380719,0.0001281,2]
[421456227,1777696232000,-445.202766,0.0001281,2]
[421456226,1777696232000,-1617.03167058,0.000128,2]
[421456225,1777696232000,-1635.8723235,0.0001278,2]
[421456224,1777696232000,-166.766574,0.0001278,2]
[421456231,1777696232000,-2150.738,0.0001281,2]
[421456242,1777696238000,-5411.2222871,0.00012818,2]
[421456273,1777696243000,-4747.05,0.00012818,2]
[421456510,1777696266000,1776.53729798,0.00012,2]
[421456515,1777696981000,3303.0,0.00021918,120]
[421456534,1777697431000,-300.0,0.00010738,2]
[421456536,1777697431000,-1150.37986795,0.00010739,2]
[421456532,1777697431000,-569.0,0.00010632,2]
[421456541,1777697431000,-2981.80396709,0.00010739,2]
[421456531,1777697431000,-5000.0,0.00010632,2]
[421456879,1777697438000,-3095.8254122,0.000126,2]
[421456877,1777697438000,-3189.21235413,0.000126,2]
[421456875,1777697438000,-2786.01804495,0.000126,2]
[421456859,1777697438000,-420.0,0.00011803,2]
[421456857,1777697438000,-456.0872351,0.00011752,2]
[421456861,1777697438000,-5565.01223938,0.00012,2]
[421456863,1777697438000,-424.716,0.00012493,2]
[421456873,1777697438000,-1280.8273013,0.000126,2]
[421456869,1777697438000,-323.03795,0.00012574,2]
[421456867,1777697438000,-327.8702242,0.00012574,2]
[421456865,1777697438000,-1000.0,0.000125,2]
[421456855,1777697438000,-288.35650084,0.00010848,2]
[421456853,1777697438000,-300.0,0.00010846,2]
[421456851,1777697438000,-867.81616496,0.00010632,2]
[421456881,1777697438000,-3405.63277952,0.000126,2]
[421456871,1777697438000,-2150.738,0.00012592,2]
[421456883,1777697438000,-602.0,0.00012605,2]
[421456900,1777697438000,-500.0,0.00012747,2]
[421456884,1777697438000,-456.1217259,0.00012635,2]
[421456885,1777697438000,-1200.92600881,0.00012648,2]
[421456902,1777697438000,-408.10868838,0.00012747,2]
[421456901,1777697438000,-643.84880377,0.00012747,2]
[421456899,1777697438000,-500.0,0.00012747,2]
[421456896,1777697438000,-500.0,0.00012747,2]
[421456898,1777697438000,-500.0,0.00012747,2]
[421456895,1777697438000,-500.0,0.00012747,2]
[421456894,1777697438000,-500.0,0.00012747,2]
[421456888,1777697438000,-445.202766,0.0001274,2]
[421456887,1777697438000,-537.6845,0.0001274,2]
[421456890,1777697438000,-183.78307079,0.00012747,2]
[421456889,1777697438000,-175.21933979,0.0001274,2]
[421456891,1777697438000,-500.0,0.00012747,2]
[421456893,1777697438000,-500.0,0.00012747,2]
[421456886,1777697438000,-1455.32850354,0.00012675,2]
[421456892,1777697438000,-500.0,0.00012747,2]
[421456969,1777697446000,-440.87684538,0.00012619,2]
[421456970,1777697446000,-130.88949796,0.00012619,2]
[421456971,1777697446000,-91.89131162,0.00012747,2]
[421456976,1777697446000,-7819.64976186,0.00012848,2]
[421456974,1777697446000,-340.26067099,0.00012848,2]
[421456973,1777697446000,-154.638821,0.00012748,2]
[421456975,1777697446000,-473.23499735,0.00012848,2]
[421456972,1777697446000,-500.0,0.00012747,2]
[421456979,1777698461000,151.0,8.01e-05,2]
[421456980,1777698469000,151.0,8.01e-05,2]
[421457022,1777698631000,-300.0,0.00011562,2]
[421457020,1777698631000,-1901.78002143,0.00011446,2]
[421457021,1777698631000,-251.0,0.00011562,2]
[421457017,1777698631000,-1043.02980477,0.00011446,2]
[421457014,1777698631000,-758.17293898,0.00011446,2]
[421457015,1777698631000,-1297.01723482,0.00011446,2]
[421457024,1777698632000,-278.7841574,0.0001173,2]
[421457025,1777698632000,-325.5777581,0.00011813,2]
[421457026,1777698632000,-339.773,0.00012395,2]
[421457029,1777698632000,-1404.73428311,0.00012548,2]
[421457028,1777698632000,-182.64986709,0.00012547,2]
[421457027,1777698632000,-500.0,0.00012547,2]
[421457023,1777698632000,-583.0,0.00011563,2]
[421457068,1777698638000,-971.03386347,0.00012548,2]
[421457176,1777698640000,-6625.51755511,0.00012548,2]
[421457226,1777699832000,-4386.62311338,0.00010848,2]
[421457315,1777699838000,-500.0,0.00012644,2]
[421457311,1777699838000,-500.0,0.00012644,2]
[421457301,1777699838000,-183.64685726,0.00012644,2]
[421457299,1777699838000,-151.0,0.000126,2]
[421457297,1777699838000,-151.0,0.000126,2]
[421457284,1777699838000,-1058.75547749,0.00012394,2]
[421457282,1777699838000,-2286.75023928,0.00012207,2]
[421457278,1777699838000,-1549.04010627,0.00011717,2]
[421457280,1777699838000,-478.3072292,0.00011813,2]
[421457293,1777699838000,-151.0,0.000126,2]
[421457289,1777699838000,-151.5,0.0001247,2]
[421457288,1777699838000,-2065.1418159,0.00012395,2]
[421457286,1777699838000,-300.0,0.00012394,2]
[421457276,1777699838000,-171.5977503,0.00011594,2]
[421457274,1777699838000,-418.0060332,0.00011296,2]
[421457266,1777699838000,-574.0,0.00010958,2]
[421457259,1777699838000,-613.37688662,0.00010848,2]
[421457272,1777699838000,-1200.0,0.00011295,2]
[421457270,1777699838000,-811.32997326,0.00011228,2]